fUST/lending_fUST_20260311
["ID","MTS","AMOUNT","RATE_DAILY","PERIOD"]
[408139173,1773167432559,-500.0,5.573e-05,2]
[408139174,1773167432568,-500.0,5.573e-05,2]
[408139175,1773167432577,-500.0,5.573e-05,2]
[408139176,1773167432588,-500.0,5.573e-05,2]
[408139177,1773167432598,-4704.57687808,5.6e-05,2]
[408139178,1773167432609,-998.10903518,5.6e-05,2]
[408139179,1773167432623,-319.00150192,5.6e-05,2]
[408139180,1773167432634,-674.78929334,5.6e-05,2]
[408139295,1773167438717,-262.25765529,5.6e-05,2]
[408139557,1773167441133,-814.419644,5.6e-05,2]
[408139796,1773167443611,-5000.0,5.544e-05,2]
[408139798,1773167443621,-4417.53641781,5.6e-05,2]
[408139809,1773167443718,-1020.0,5.6e-05,2]
[408139816,1773167443774,-1074.91166387,5.6e-05,2]
[408139849,1773167444095,-2658.66234925,5.6e-05,2]
[408140096,1773167446611,-3518.25,5.6e-05,2]
[408140097,1773167446622,-444.49254584,5.6e-05,2]
[408140117,1773168353140,-214.59431312,4.274e-05,2]
[408140120,1773168546089,-1343.11591469,4.147e-05,2]
[408140122,1773168546110,-985.05018441,4.189e-05,2]
[408140124,1773168546135,-5000.0,4.231e-05,2]
[408140126,1773168546157,-237.61407481,4.339e-05,2]
[408140129,1773168551129,-2623.26006644,4.296e-05,2]
[408140130,1773168551161,-2376.73993356,4.296e-05,2]
[408140131,1773168551183,-62.68952366,4.339e-05,2]
[408140132,1773168551209,-188.8165947,4.45e-05,2]
[408140146,1773168631642,-700.499995,5.343e-05,2]
[408140153,1773168631690,-3648.23071714,5.343e-05,2]
[408140155,1773168631701,-651.26928786,5.343e-05,2]
[408140157,1773168631710,-294.2975265,5.371e-05,2]
[408140159,1773168631719,-300.0,5.399e-05,2]
[408140161,1773168631729,-300.0,5.399e-05,2]
[408140163,1773168631739,-1200.0,5.399e-05,2]
[408140165,1773168631748,-6016.14184644,5.4e-05,2]
[408140188,1773168637665,-1509.5865512,5.4e-05,2]
[408140206,1773168637825,-6474.27160236,5.4e-05,2]
[408140209,1773168637835,-357.4699205,5.4e-05,2]
[408140212,1773168637844,-1239.86903597,5.4e-05,2]
[408140214,1773168637854,-1404.03667421,5.4e-05,2]
[408140216,1773168637863,-3846.65413383,5.45e-05,2]
[408140218,1773168637873,-1822.7536587,5.45e-05,2]
[408140220,1773168637882,-500.0,5.493e-05,2]
[408140222,1773168637892,-500.0,5.493e-05,2]
[408140224,1773168637901,-502.58831501,5.493e-05,2]
[408140226,1773168637911,-500.0,5.493e-05,2]
[408140228,1773168637920,-500.0,5.493e-05,2]
[408140230,1773168637930,-500.0,5.493e-05,2]
[408140233,1773168637939,-500.0,5.493e-05,2]
[408140235,1773168637948,-500.0,5.493e-05,2]
[408140237,1773168637957,-500.0,5.493e-05,2]
[408140238,1773168637966,-172.81596771,5.493e-05,2]
[408140240,1773168637975,-500.0,5.493e-05,2]
[408140242,1773168637985,-500.0,5.493e-05,2]
[408140244,1773168637994,-500.0,5.493e-05,2]
[408140246,1773168638004,-500.0,5.493e-05,2]
[408140248,1773168638013,-411.23788138,5.493e-05,2]
[408140250,1773168638023,-500.0,5.493e-05,2]
[408140252,1773168638032,-533.41723758,5.493e-05,2]
[408140254,1773168638042,-500.0,5.493e-05,2]
[408140256,1773168638051,-500.0,5.493e-05,2]
[408140258,1773168638060,-500.0,5.493e-05,2]
[408140260,1773168638070,-500.0,5.493e-05,2]
[408140262,1773168638079,-500.0,5.493e-05,2]
[408140264,1773168638089,-500.0,5.493e-05,2]
[408140266,1773168638098,-500.0,5.493e-05,2]
[408140268,1773168638107,-500.0,5.493e-05,2]
[408140270,1773168638116,-500.0,5.493e-05,2]
[408140272,1773168638126,-500.0,5.493e-05,2]
[408140274,1773168638136,-500.0,5.493e-05,2]
[408140276,1773168638146,-500.0,5.493e-05,2]
[408140278,1773168638156,-500.0,5.493e-05,2]
[408140280,1773168638166,-500.0,5.493e-05,2]
[408140283,1773168638176,-500.0,5.493e-05,2]
[408140285,1773168638186,-500.0,5.493e-05,2]
[408140287,1773168638195,-500.0,5.493e-05,2]
[408140288,1773168638205,-500.0,5.493e-05,2]
[408140291,1773168638216,-500.0,5.493e-05,2]
[408140293,1773168638229,-500.0,5.493e-05,2]
[408140295,1773168638239,-500.0,5.493e-05,2]
[408140297,1773168638248,-252.6627536,5.493e-05,2]
[408140299,1773168638258,-500.0,5.493e-05,2]
[408140301,1773168638267,-500.0,5.493e-05,2]
[408140303,1773168638276,-500.0,5.493e-05,2]
[408140305,1773168638286,-500.0,5.493e-05,2]
[408140307,1773168638296,-500.0,5.493e-05,2]
[408140309,1773168638306,-500.0,5.493e-05,2]
[408140311,1773168638315,-500.0,5.493e-05,2]
[408140313,1773168638324,-500.0,5.493e-05,2]
[408140315,1773168638333,-500.0,5.493e-05,2]
[408140317,1773168638343,-500.0,5.493e-05,2]
[408140319,1773168638352,-500.0,5.493e-05,2]
[408140321,1773168638361,-500.0,5.493e-05,2]
[408140323,1773168638370,-500.0,5.493e-05,2]
[408140325,1773168638380,-500.0,5.493e-05,2]
[408140327,1773168638390,-500.0,5.493e-05,2]
[408140329,1773168638399,-500.0,5.493e-05,2]
[408140331,1773168638409,-500.0,5.493e-05,2]
[408140333,1773168638418,-500.0,5.493e-05,2]
[408140335,1773168638428,-500.0,5.493e-05,2]
[408140337,1773168638437,-500.0,5.493e-05,2]
[408140339,1773168638447,-250.0,5.493e-05,2]
[408140341,1773168638456,-500.0,5.493e-05,2]
[408140343,1773168638465,-500.0,5.493e-05,2]
[408140345,1773168638474,-8008.70286645,5.5e-05,2]
[408140347,1773168638483,-8961.95043316,5.5e-05,2]
[408140349,1773168638493,-86564.76904682,5.5e-05,2]
[408140351,1773168638502,-172.37684369,5.5e-05,2]
[408140353,1773168638512,-172.37684368,5.522e-05,2]
[408140355,1773168638521,-500.0,5.523e-05,2]
[408140357,1773168638534,-500.0,5.523e-05,2]
[408140359,1773168638543,-500.0,5.523e-05,2]
[408140361,1773168638552,-500.0,5.523e-05,2]
[408140363,1773168638561,-500.0,5.523e-05,2]
[408140365,1773168638570,-500.0,5.523e-05,2]
[408140367,1773168638580,-500.0,5.523e-05,2]
[408140369,1773168638590,-500.0,5.523e-05,2]
[408140371,1773168638600,-500.0,5.523e-05,2]
[408140373,1773168638609,-500.0,5.523e-05,2]
[408140375,1773168638618,-500.0,5.523e-05,2]
[408140377,1773168638628,-500.0,5.523e-05,2]
[408140379,1773168638637,-500.0,5.523e-05,2]
[408140381,1773168638646,-500.0,5.523e-05,2]
[408140383,1773168638655,-500.0,5.523e-05,2]
[408140385,1773168638665,-500.0,5.523e-05,2]
[408140387,1773168638675,-500.0,5.523e-05,2]
[408140389,1773168638684,-500.0,5.523e-05,2]
[408140391,1773168638693,-500.0,5.523e-05,2]
[408140393,1773168638703,-500.0,5.523e-05,2]
[408140395,1773168638712,-500.0,5.523e-05,2]
[408140397,1773168638722,-4380.639382,5.54e-05,2]
[408140399,1773168638731,-158.243,5.543e-05,2]
[408140401,1773168638741,-3066.93109748,5.544e-05,2]
[408140403,1773168638751,-20262.65392168,5.544e-05,2]
[408140406,1773168638761,-468398.36904352,5.544e-05,2]
[408140408,1773168638770,-18725.01106351,5.544e-05,2]
[408140410,1773168638780,-151.0,5.544e-05,2]
[408140412,1773168638790,-151.0,5.544e-05,2]
[408140414,1773168638799,-151.0,5.544e-05,2]
[408140416,1773168638809,-151.0,5.544e-05,2]
[408140418,1773168638819,-151.0,5.544e-05,2]
[408140420,1773168638829,-151.0,5.544e-05,2]
[408140422,1773168638838,-151.0,5.544e-05,2]
[408140424,1773168638847,-151.0,5.544e-05,2]
[408140426,1773168638857,-172.37684368,5.544e-05,2]
[408140428,1773168638866,-213.842658,5.544e-05,2]
[408140430,1773168638876,-1430.038763,5.656e-05,2]
[408140432,1773168638887,-500.0,5.673e-05,2]
[408140434,1773168638896,-300.0,5.683e-05,2]
[408140436,1773168638908,-300.0,5.683e-05,2]
[408140438,1773168638917,-300.0,5.683e-05,2]
[408140440,1773168638927,-300.0,5.683e-05,2]
[408140442,1773168638936,-300.0,5.683e-05,2]
[408140444,1773168638945,-300.0,5.683e-05,2]
[408140446,1773168638955,-300.0,5.683e-05,2]
[408140448,1773168638964,-300.0,5.683e-05,2]
[408140450,1773168638974,-300.0,5.683e-05,2]
[408140452,1773168638983,-300.0,5.683e-05,2]
[408140454,1773168638993,-300.0,5.683e-05,2]
[408140456,1773168639003,-300.0,5.683e-05,2]
[408140458,1773168639012,-300.0,5.683e-05,2]
[408140460,1773168639022,-300.0,5.683e-05,2]
[408140462,1773168639031,-300.0,5.683e-05,2]
[408140464,1773168639040,-600.0,5.711e-05,2]
[408140466,1773168639051,-1430.038763,5.867e-05,2]
[408140468,1773168639061,-5175.87137099,5.9e-05,2]
[408140470,1773168639072,-11844.59784132,5.9e-05,2]
[408140472,1773168639082,-10557.25154169,5.9e-05,2]
[408140474,1773168639092,-656.62999862,5.9e-05,2]
[408140476,1773168639102,-1502.18894372,5.9e-05,2]
[408140478,1773168639111,-495.432686,5.9e-05,2]
[408140480,1773168639121,-151.0,5.9e-05,2]
[408140482,1773168639130,-151.0,5.9e-05,2]
[408140484,1773168639147,-151.0,5.9e-05,2]
[408140486,1773168639157,-272.45958855,5.9e-05,2]
[408140489,1773168639167,-151.0,5.9e-05,2]
[408140491,1773168639177,-151.0,5.9e-05,2]
[408140493,1773168639187,-151.0,5.9e-05,2]
[408140495,1773168639197,-277.840045,5.9e-05,2]
[408140497,1773168639209,-420.0,5.939e-05,2]
[408140499,1773168639219,-1680.0,5.939e-05,2]
[408140501,1773168639231,-198.68144447,5.997e-05,2]
[408140503,1773168639241,-1957.856,5.997e-05,2]
[408140505,1773168639251,-250.0,5.997e-05,2]
[408140507,1773168639260,-250.0,5.997e-05,2]
[408140509,1773168639270,-250.0,5.997e-05,2]
[408140511,1773168639280,-250.0,5.997e-05,2]
[408140513,1773168639290,-250.0,5.997e-05,2]
[408140515,1773168639301,-250.0,5.997e-05,2]
[408140517,1773168639311,-250.0,5.997e-05,2]
[408140519,1773168639320,-500.0,5.997e-05,2]
[408140521,1773168639330,-250.0,5.997e-05,2]
[408140523,1773168639339,-151.0,5.997e-05,2]
[408140525,1773168639348,-500.0,5.997e-05,2]
[408140527,1773168639357,-250.0,5.997e-05,2]
[408140529,1773168639367,-2150.738,5.997e-05,2]
[408140531,1773168639377,-156.587,5.997e-05,2]
[408140533,1773168639389,-500.0,5.997e-05,2]
[408140535,1773168639398,-250.0,5.997e-05,2]
[408140537,1773168639407,-162.380719,5.997e-05,2]
[408140539,1773168639416,-500.0,5.997e-05,2]
[408140541,1773168639426,-250.0,5.997e-05,2]
[408140543,1773168639435,-168.3888056,5.997e-05,2]
[408140545,1773168639445,-500.0,5.997e-05,2]
[408140547,1773168639455,-246.56125856,5.997e-05,2]
[408140549,1773168639464,-174.61919141,5.997e-05,2]
[408140551,1773168639474,-500.0,5.997e-05,2]
[408140553,1773168639483,-181.08010149,5.997e-05,2]
[408140555,1773168639493,-500.0,5.997e-05,2]
[408140557,1773168639504,-187.78006525,5.997e-05,2]
[408140559,1773168639513,-500.0,5.997e-05,2]
[408140561,1773168639523,-194.72792766,5.997e-05,2]
[408140563,1773168639532,-500.0,5.997e-05,2]
[408140565,1773168639542,-201.93286099,5.997e-05,2]
[408140567,1773168639552,-500.0,5.997e-05,2]
[408140570,1773168639561,-209.40437684,5.997e-05,2]
[408140573,1773168639570,-500.0,5.997e-05,2]
[408140576,1773168639580,-217.15233878,5.997e-05,2]
[408140578,1773168639589,-500.0,5.997e-05,2]
[408140580,1773168639599,-162.380719,5.997e-05,2]
[408140582,1773168639608,-225.18697532,5.997e-05,2]
[408140584,1773168639618,-500.0,5.997e-05,2]
[408140586,1773168639627,-500.0,5.997e-05,2]
[408140588,1773168639638,-233.51889341,5.997e-05,2]
[408140590,1773168639647,-242.15909246,5.997e-05,2]
[408140592,1773168639656,-251.11897888,5.997e-05,2]
[408140594,1773168639666,-260.4103811,5.997e-05,2]
[408140596,1773168639675,-270.0455652,5.997e-05,2]
[408140598,1773168639684,-280.03725112,5.997e-05,2]
[408140600,1773168639693,-290.39862941,5.997e-05,2]
[408140602,1773168639703,-214.78211377,5.997e-05,2]
[408140604,1773168639712,-301.1433787,5.997e-05,2]
[408140606,1773168639721,-500.0,5.997e-05,2]
[408140608,1773168639730,-500.0,5.997e-05,2]
[408140610,1773168639739,-500.0,5.997e-05,2]
[408140612,1773168639748,-500.0,5.997e-05,2]
[408140614,1773168639757,-445.202766,5.997e-05,2]
[408140616,1773168639767,-537.6845,5.997e-05,2]
[408140618,1773168639776,-151.0,6.05e-05,2]
[408140620,1773168639785,-151.0,6.05e-05,2]
[408140622,1773168639794,-151.0,6.05e-05,2]
[408140624,1773168639803,-151.0,6.05e-05,2]
[408140626,1773168639813,-210.42414061,6.05e-05,2]
[408140628,1773168639823,-2030.296672,6.052e-05,2]
[408140630,1773168639833,-1000.0,6.071e-05,2]
[408140632,1773168639843,-1000.0,6.071e-05,2]
[408140634,1773168639852,-1000.0,6.071e-05,2]
[408140636,1773168639862,-532.60290731,6.071e-05,2]
[408140638,1773168639871,-1000.0,6.071e-05,2]
[408140640,1773168639881,-215.16370065,6.071e-05,2]
[408140642,1773168639892,-651.49422731,6.071e-05,2]
[408140644,1773168639902,-1000.0,6.071e-05,2]
[408140646,1773168639912,-1000.0,6.071e-05,2]
[408140648,1773168639921,-1000.0,6.071e-05,2]
[408140650,1773168639931,-1000.0,6.071e-05,2]
[408140652,1773168639940,-1000.0,6.071e-05,2]
[408140654,1773168639949,-1000.0,6.071e-05,2]
[408140656,1773168639958,-1000.0,6.071e-05,2]
[408140658,1773168639968,-1000.0,6.071e-05,2]
[408140661,1773168639978,-1000.0,6.071e-05,2]
[408140663,1773168639990,-1109.13112128,6.071e-05,2]
[408140664,1773168640000,-1000.0,6.071e-05,2]
[408140666,1773168640009,-1000.0,6.071e-05,2]
[408140669,1773168640018,-1000.0,6.071e-05,2]
[408140671,1773168640028,-1000.0,6.071e-05,2]
[408140672,1773168640037,-1430.038763,6.079e-05,2]
[408140675,1773168640046,-320.42387208,6.107e-05,2]
[408140676,1773168640056,-151.0,6.119e-05,2]
[408140679,1773168640065,-151.0,6.119e-05,2]
[408140681,1773168640075,-151.0,6.119e-05,2]
[408140683,1773168640084,-151.0,6.119e-05,2]
[408140684,1773168640093,-151.0,6.119e-05,2]
[408140686,1773168640103,-151.0,6.119e-05,2]
[408140688,1773168640112,-1000.0,6.221e-05,2]
[408140690,1773168640122,-720.0,6.282e-05,2]
[408140693,1773168640132,-587.0,6.533e-05,2]
[408140695,1773168640142,-2351.0,6.533e-05,2]
[408140696,1773168640152,-2230.315306,6.545e-05,2]
[408140699,1773168640161,-461.67526834,6.545e-05,2]
[408140701,1773168640171,-557.5788265,6.545e-05,2]
[408140703,1773168640180,-1500.0,6.618e-05,2]
[408140704,1773168640190,-1500.0,6.618e-05,2]
[408140706,1773168640199,-1500.0,6.618e-05,2]
[408140708,1773168640208,-1500.0,6.618e-05,2]
[408140710,1773168640219,-1500.0,6.618e-05,2]
[408140713,1773168640232,-1500.0,6.618e-05,2]
[408140714,1773168640241,-1500.0,6.618e-05,2]
[408140716,1773168640251,-1500.0,6.618e-05,2]
[408140719,1773168640260,-1500.0,6.618e-05,2]
[408140721,1773168640270,-1500.0,6.618e-05,2]
[408140723,1773168640279,-1500.0,6.618e-05,2]
[408140725,1773168640288,-1500.0,6.618e-05,2]
[408140727,1773168640297,-1500.0,6.618e-05,2]
[408140729,1773168640306,-1500.0,6.618e-05,2]
[408140731,1773168640316,-1500.0,6.618e-05,2]
[408140733,1773168640325,-1500.0,6.618e-05,2]
[408140735,1773168640334,-1500.0,6.618e-05,2]
[408140737,1773168640343,-800.0,6.66e-05,2]
[408140739,1773168640352,-151.0,6.668e-05,2]
[408140741,1773168640361,-151.0,6.668e-05,2]
[408140743,1773168640371,-151.0,6.668e-05,2]
[408140745,1773168640380,-151.0,6.668e-05,2]
[408140747,1773168640390,-151.0,6.668e-05,2]
[408140749,1773168640399,-151.0,6.668e-05,2]
[408140751,1773168640409,-158.76815919,6.718e-05,2]
[408140753,1773168640418,-690.0,6.718e-05,2]
[408140756,1773168640427,-234.25297584,6.718e-05,2]
[408140759,1773168640436,-338.0,6.718e-05,2]
[408140762,1773168640445,-338.0,6.718e-05,2]
[408140765,1773168640454,-338.0,6.718e-05,2]
[408140768,1773168640463,-338.0,6.718e-05,2]
[408140804,1773168640773,-351.0,6.718e-05,2]
[408140806,1773168640783,-351.0,6.718e-05,2]
[408140809,1773168640792,-351.0,6.718e-05,2]
[408140811,1773168640802,-351.0,6.718e-05,2]
[408140812,1773168640811,-351.0,6.718e-05,2]
[408140815,1773168640821,-351.0,6.718e-05,2]
[408140817,1773168640830,-453.7341023,6.718e-05,2]
[408140818,1773168640839,-166.0,6.718e-05,2]
[408140821,1773168640848,-166.0,6.718e-05,2]
[408140823,1773168640858,-155.0,6.718e-05,2]
[408140825,1773168640867,-155.0,6.718e-05,2]
[408140827,1773168640878,-501.18049057,6.719e-05,2]
[408140828,1773168640889,-1500.0,6.768e-05,2]
[408140830,1773168640899,-900.0,6.852e-05,2]
[408140833,1773168640909,-900.0,6.852e-05,2]
[408140834,1773168640918,-900.0,6.852e-05,2]
[408140837,1773168640927,-900.0,6.852e-05,2]
[408140838,1773168640936,-900.0,6.852e-05,2]
[408140840,1773168640946,-900.0,6.852e-05,2]
[408140842,1773168640955,-900.0,6.852e-05,2]
[408140844,1773168640964,-900.0,6.852e-05,2]
[408140846,1773168640973,-900.0,6.852e-05,2]
[408140848,1773168640983,-900.0,6.852e-05,2]
[408140850,1773168640992,-900.0,6.852e-05,2]
[408140852,1773168641001,-500.0,6.852e-05,2]
[408140854,1773168641010,-900.0,6.852e-05,2]
[408140856,1773168641019,-1600.0,6.852e-05,2]
[408140858,1773168641028,-500.0,6.852e-05,2]
[408140860,1773168641037,-500.0,6.852e-05,2]
[408140862,1773168641047,-500.0,6.852e-05,2]
[408140864,1773168641056,-500.0,6.852e-05,2]
[408140866,1773168641065,-698.64280661,6.852e-05,2]
[408140868,1773168641075,-500.0,6.852e-05,2]
[408140870,1773168641084,-500.0,6.852e-05,2]
[408140872,1773168641093,-500.0,6.852e-05,2]
[408140874,1773168641102,-500.0,6.852e-05,2]
[408140876,1773168641112,-500.0,6.852e-05,2]
[408140878,1773168641120,-500.0,6.852e-05,2]
[408140880,1773168641130,-500.0,6.852e-05,2]
[408140882,1773168641139,-500.0,6.852e-05,2]
[408140883,1773168641148,-992.09417167,6.852e-05,2]
[408140885,1773168641158,-864.0,6.91e-05,2]
[408140887,1773168641167,-462.35102507,6.949e-05,2]
[408140889,1773168641176,-540.7942288,6.966e-05,2]
[408140891,1773168641186,-832.23184513,6.974e-05,2]
[408140893,1773168641195,-973.42961185,7.007e-05,2]
[408140895,1773168641204,-2312.83697232,7.093e-05,2]
[408140897,1773168641213,-478.75725327,7.093e-05,2]
[408140899,1773168641223,-578.20924308,7.093e-05,2]
[408140901,1773168641236,-1479.52328023,7.138e-05,2]
[408140903,1773168641245,-151.0,7.166e-05,2]
[408140904,1773168641255,-151.0,7.166e-05,2]
[408140905,1773168641264,-151.0,7.166e-05,2]
[408140906,1773168641274,-151.0,7.166e-05,2]
[408140907,1773168641284,-151.0,7.166e-05,2]
[408140908,1773168641293,-151.0,7.166e-05,2]
[408140909,1773168641303,-358.3600221,7.166e-05,2]
[408140910,1773168641312,-2000.0,7.166e-05,2]
[408140911,1773168641321,-2000.0,7.166e-05,2]
[408140912,1773168641331,-795.82926348,7.166e-05,2]
[408140913,1773168641340,-2000.0,7.166e-05,2]
[408140914,1773168641349,-2000.0,7.166e-05,2]
[408140915,1773168641358,-500.39489726,7.166e-05,2]
[408140916,1773168641367,-2000.0,7.166e-05,2]
[408140917,1773168641376,-2000.0,7.166e-05,2]
[408140918,1773168641386,-2000.0,7.166e-05,2]
[408140919,1773168641398,-2000.0,7.166e-05,2]
[408140920,1773168641407,-1697.48361718,7.166e-05,2]
[408140921,1773168641416,-2000.0,7.166e-05,2]
[408140922,1773168641425,-2000.0,7.166e-05,2]
[408140923,1773168641435,-2000.0,7.166e-05,2]
[408140924,1773168641444,-2000.0,7.166e-05,2]
[408140925,1773168641453,-2000.0,7.166e-05,2]
[408140926,1773168641462,-823.0,7.186e-05,2]
[408140927,1773168641471,-3292.0,7.186e-05,2]
[408140928,1773168641481,-1730.54153217,7.187e-05,2]
[408140929,1773168641490,-639.0,7.237e-05,2]
[408140930,1773168641500,-1391.0,7.237e-05,2]
[408140931,1773168641509,-2193.0,7.237e-05,2]
[408140932,1773168641518,-1052.84098938,7.299e-05,5]
[408140933,1773168641528,-900.12445539,7.299e-05,5]
[408140934,1773168641536,-2309.44337024,7.302e-05,2]
[408140936,1773168641545,-1500.0,7.316e-05,2]
[408140937,1773168641554,-168.3888056,7.366e-05,2]
[408140939,1773168641564,-2701.26717287,7.369e-05,2]
[408140941,1773168641573,-347.27108127,7.371e-05,2]
[408140943,1773168641582,-489.0,7.4e-05,2]
[408140945,1773168641591,-1000.0,7.601e-05,2]
[408140947,1773168641601,-265.853,7.611e-05,2]
[408140949,1773168641609,-2398.4119403,7.641e-05,2]
[408140951,1773168641619,-496.47127164,7.641e-05,2]
[408140953,1773168641628,-599.60298507,7.641e-05,2]
[408140955,1773168641636,-2567.71336261,7.714e-05,2]
[408140957,1773168641649,-2500.0,7.714e-05,2]
[408140959,1773168641658,-2500.0,7.714e-05,2]
[408140961,1773168641667,-1222.56887792,7.714e-05,2]
[408140963,1773168641675,-1000.0,7.714e-05,2]
[408140965,1773168641684,-2500.0,7.714e-05,2]
[408140967,1773168641693,-2500.0,7.714e-05,2]
[408140969,1773168641702,-1220.13419402,7.714e-05,2]
[408140971,1773168641712,-500.0,7.714e-05,2]
[408140973,1773168641721,-2500.0,7.714e-05,2]
[408140974,1773168641730,-2500.0,7.714e-05,2]
[408140976,1773168641740,-2500.0,7.714e-05,2]
[408140978,1773168641749,-2500.0,7.714e-05,2]
[408140980,1773168641758,-1152.0,7.905e-05,2]
[408140982,1773168641767,-180.0,7.905e-05,2]
[408140984,1773168641777,-324.6699664,8.165e-05,2]
[408140987,1773168641786,-2487.15318209,8.189e-05,2]
[408140989,1773168641796,-514.84070869,8.189e-05,2]
[408140991,1773168641805,-621.78829552,8.189e-05,2]
[408140993,1773168641814,-500.0,8.219e-05,2]
[408140994,1773168641823,-521.82842242,8.219e-05,2]
[408140996,1773168641832,-3000.0,8.262e-05,2]
[408140998,1773168641841,-2982.17366134,8.262e-05,2]
[408140999,1773168641850,-1423.16370065,8.262e-05,2]
[408141001,1773168641860,-789.6809691,8.262e-05,2]
[408141003,1773168641869,-1739.41291991,8.262e-05,2]
[408141005,1773168641878,-2207.65960443,8.262e-05,2]
[408141007,1773168641889,-3000.0,8.262e-05,2]
[408141009,1773168641899,-1000.0,8.361e-05,2]
[408141011,1773168641909,-244.0,8.361e-05,2]
[408141013,1773168641918,-10319.98379011,8.436e-05,2]
[408141015,1773168641927,-13689.1322907,8.46e-05,2]
[408141017,1773168641936,-300.0,8.695e-05,2]
[408141019,1773168641945,-174.61919141,8.735e-05,2]
[408141021,1773168641955,-2579.17784983,8.737e-05,2]
[408141022,1773168641964,-533.88981491,8.737e-05,2]
[408141025,1773168641974,-644.79446246,8.737e-05,2]
[408141027,1773168641987,-3500.0,8.81e-05,2]
[408141029,1773168641997,-3500.0,8.81e-05,2]
[408141031,1773168642006,-5000.0,9e-05,2]
[408141032,1773168642016,-5000.0,9e-05,2]
[408141034,1773168642026,-5000.0,9e-05,2]
[408141036,1773168642035,-5000.0,9e-05,2]
[408141038,1773168642045,-5000.0,9e-05,2]
[408141040,1773168642055,-1000.0,9.198e-05,2]
[408141042,1773168642065,-492.0,9.198e-05,2]
[408141044,1773168642074,-2674.60743027,9.285e-05,2]
[408141046,1773168642084,-553.64373807,9.285e-05,2]
[408141048,1773168642094,-668.65185757,9.285e-05,2]
[408141050,1773168642103,-192.2609157,9.358e-05,2]
[408141052,1773168642113,-4000.0,9.358e-05,2]
[408141054,1773168642122,-400.24463604,9.371e-05,2]
[408141056,1773168642132,-2773.56790519,9.833e-05,2]
[408141058,1773168642142,-192.44882344,9.833e-05,2]
[408141060,1773168642152,-693.3919763,9.833e-05,2]
[408141062,1773168642161,-4500.0,9.906e-05,2]
[408141064,1773168642171,-797.535482,0.0001,2]
[408141066,1773168642180,-900.0,0.0001,2]
[408141068,1773168642190,-900.0,0.0001,2]
[408141070,1773168642199,-900.0,0.0001,2]
[408141072,1773168642208,-900.0,0.0001,2]
[408141073,1773168642218,-900.0,0.0001,2]
[408141075,1773168642229,-900.0,0.0001,2]
[408141077,1773168642240,-900.0,0.0001,2]
[408141079,1773168642250,-900.0,0.0001,2]
[408141081,1773168642260,-900.0,0.0001,2]
[408141083,1773168642270,-900.0,0.0001,2]
[408141085,1773168642279,-900.0,0.0001,2]
[408141087,1773168642289,-900.0,0.0001,2]
[408141089,1773168642299,-500.0,0.0001,2]
[408141091,1773168642309,-500.0,0.0001,2]
[408141093,1773168642319,-500.0,0.0001,2]
[408141095,1773168642329,-900.0,0.0001,2]
[408141097,1773168642339,-500.0,0.0001,2]
[408141100,1773168642349,-500.0,0.0001,2]
[408141103,1773168642358,-500.0,0.0001,2]
[408141105,1773168642367,-500.0,0.0001,2]
[408141107,1773168642377,-500.0,0.0001,2]
[408141109,1773168642386,-500.0,0.0001,2]
[408141110,1773168642399,-500.0,0.0001,2]
[408141112,1773168642408,-500.0,0.0001,2]
[408141114,1773168642418,-500.0,0.0001,2]
[408141116,1773168642427,-500.0,0.0001,2]
[408141119,1773168642437,-500.0,0.0001,2]
[408141122,1773168642447,-500.0,0.0001,2]
[408141125,1773168642456,-500.0,0.0001,2]
[408141128,1773168642465,-500.0,0.0001,2]
[408141131,1773168642475,-500.0,0.0001,2]
[408141134,1773168642485,-500.0,0.0001,2]
[408141137,1773168642494,-331.30771633,0.00010104,2]
[408141140,1773168642504,-1000.0,0.00010117,2]
[408141142,1773168642514,-791.0,0.00010117,2]
[408141143,1773168642524,-1000.0,0.000102,2]
[408141145,1773168642534,-182.0,0.000102,7]
[408141147,1773168642543,-2193.0,0.00010237,2]
[408141149,1773168642553,-800.0,0.00010253,2]
[408141151,1773168642562,-578.76388051,0.00010258,2]
[408141153,1773168642571,-800.0,0.00010297,2]